[Event "*** Titled Tuesday Blitz"]
[Site "Chess.com"]
[Date "2020.04.07"]
[Round "2"]
[White "Elshan1985"]
[Black "Philosopherrr"]
[Result "0-1"]
[WhiteElo "2687"]
[BlackElo "2399"]
[TimeControl "180+1"]
[EndTime "13:17:54 PDT"]
[Termination "Philosopherrr won by resignation"]

1. d4 {[%clk 0:03:00.9]} 1... Nf6 {[%clk 0:02:59.6]} 2. c4 {[%clk 0:03:00.8]}
2... e6 {[%clk 0:02:59.5]} 3. Nf3 {[%clk 0:03:01.1]} 3... c5 {[%clk 0:02:59.6]}
4. Nc3 {[%clk 0:02:55.4]} 4... d5 {[%clk 0:02:52.6]} 5. e3 {[%clk 0:02:53.3]}
5... Nc6 {[%clk 0:02:51.3]} 6. cxd5 {[%clk 0:02:53.2]} 6... exd5 {[%clk
0:02:47.7]} 7. Bb5 {[%clk 0:02:53.1]} 7... a6 {[%clk 0:02:44.1]} 8. Bxc6+ {[%clk
0:02:50.4]} 8... bxc6 {[%clk 0:02:44.3]} 9. O-O {[%clk 0:02:50.7]} 9... Bd6
{[%clk 0:02:39.6]} 10. dxc5 {[%clk 0:02:49.8]} 10... Bxc5 {[%clk 0:02:39.4]} 11.
b3 {[%clk 0:02:44.5]} 11... O-O {[%clk 0:02:33.9]} 12. Bb2 {[%clk 0:02:44.5]}
12... Re8 {[%clk 0:02:33.4]} 13. Rc1 {[%clk 0:02:44.5]} 13... Bd6 {[%clk
0:02:32.2]} 14. Na4 {[%clk 0:02:44.6]} 14... Bd7 {[%clk 0:02:09.3]} 15. Bd4
{[%clk 0:02:36.3]} 15... Ne4 {[%clk 0:02:05.6]} 16. Nc5 {[%clk 0:02:33.4]} 16...
Bg4 {[%clk 0:01:48.8]} 17. h3 {[%clk 0:02:31.6]} 17... Bxf3 {[%clk 0:01:48.6]}
18. Qxf3 {[%clk 0:02:31.1]} 18... Bxc5 {[%clk 0:01:44.4]} 19. Bxc5 {[%clk
0:02:29.2]} 19... Nd2 {[%clk 0:01:42.9]} 20. Qg4 {[%clk 0:02:26]} 20... Re4
{[%clk 0:01:40.1]} 21. Qg3 {[%clk 0:02:20.1]} 21... Nxf1 {[%clk 0:01:39.9]} 22.
Kxf1 {[%clk 0:02:20.5]} 22... Re6 {[%clk 0:01:35.4]} 23. Bd4 {[%clk 0:02:16.1]}
23... Rg6 {[%clk 0:01:34.9]} 24. Qe5 {[%clk 0:02:13.8]} 24... Qe8 {[%clk
0:01:33.8]} 25. Qxe8+ {[%clk 0:02:08.5]} 25... Rxe8 {[%clk 0:01:33.4]} 26. Rc5
{[%clk 0:02:09.1]} 26... Rge6 {[%clk 0:01:29.8]} 27. Ra5 {[%clk 0:02:07.9]}
27... Ra8 {[%clk 0:01:29.5]} 28. b4 {[%clk 0:02:08.3]} 28... Ree8 {[%clk
0:01:26.7]} 29. Rc5 {[%clk 0:02:05.8]} 29... Rec8 {[%clk 0:01:26.3]} 30. a3
{[%clk 0:02:05.7]} 30... f6 {[%clk 0:01:26.3]} 31. Ke2 {[%clk 0:02:05.4]} 31...
Kf7 {[%clk 0:01:26.3]} 32. Kd3 {[%clk 0:02:05.8]} 32... Ke6 {[%clk 0:01:26.3]}
33. Kc3 {[%clk 0:02:05.9]} 33... Kd7 {[%clk 0:01:26.1]} 34. Kb3 {[%clk
0:02:06.2]} 34... Rab8 {[%clk 0:01:24.4]} 35. Ra5 {[%clk 0:02:04.1]} 35... Ra8
{[%clk 0:01:20.9]} 36. Ka4 {[%clk 0:02:04.3]} 36... Rcb8 {[%clk 0:01:18.8]} 37.
Rc5 {[%clk 0:01:55.6]} 37... Rb5 {[%clk 0:01:18.7]} 38. g4 {[%clk 0:01:51.2]}
38... a5 {[%clk 0:01:12.4]} 39. Rxb5 {[%clk 0:01:50.5]} 39... cxb5+ {[%clk
0:01:09]} 40. Kxb5 {[%clk 0:01:50.8]} 40... axb4 {[%clk 0:01:09.5]} 41. Kxb4
{[%clk 0:01:42.5]} 41... Kc6 {[%clk 0:01:07.4]} 42. h4 {[%clk 0:01:35.8]} 42...
h5 {[%clk 0:01:02.3]} 43. g5 {[%clk 0:01:29.7]} 43... fxg5 {[%clk 0:01:02]} 44.
hxg5 {[%clk 0:01:30.6]} 44... g6 {[%clk 0:01:01.8]} 45. a4 {[%clk 0:01:29.1]}
45... h4 {[%clk 0:01:01.3]} 46. a5 {[%clk 0:01:28.3]} 46... h3 {[%clk
0:01:00.4]} 47. Be5 {[%clk 0:01:28.3]} 47... Rf8 {[%clk 0:00:55.4]} 48. a6
{[%clk 0:01:28.2]} 48... Rxf2 {[%clk 0:00:52.7]} 49. a7 {[%clk 0:01:27.4]} 49...
Kb7 {[%clk 0:00:52.3]} 50. Kc5 {[%clk 0:01:27.6]} 50... h2 {[%clk 0:00:52.2]}
51. Bxh2 {[%clk 0:01:27.5]} 51... Rxh2 {[%clk 0:00:52.3]} 52. Kxd5 {[%clk
0:01:28.1]} 52... Rg2 {[%clk 0:00:52.5]} 0-1

[Event "*** Titled Tuesday Blitz"]
[Site "Chess.com"]
[Date "2020.04.07"]
[Round "2"]
[White "ehrenfeld"]
[Black "Ovsiannikov_Maxim"]
[Result "0-1"]
[WhiteElo "2441"]
[BlackElo "2219"]
[TimeControl "180+1"]
[EndTime "13:17:54 PDT"]
[Termination "Ovsiannikov_Maxim won by resignation"]

1. e4 {[%clk 0:03:00.9]} 1... e6 {[%clk 0:02:59.5]} 2. d3 {[%clk 0:03:00.8]}
2... d5 {[%clk 0:03:00.1]} 3. Qe2 {[%clk 0:03:00.9]} 3... Nf6 {[%clk 0:02:59.2]}
4. Nf3 {[%clk 0:03:00.5]} 4... b5 {[%clk 0:02:59.5]} 5. exd5 {[%clk 0:02:57]}
5... Nxd5 {[%clk 0:02:58.3]} 6. g3 {[%clk 0:02:56.9]} 6... Bb7 {[%clk
0:02:58.2]} 7. Bg2 {[%clk 0:02:57.1]} 7... Nf6 {[%clk 0:02:57.7]} 8. O-O {[%clk
0:02:56.5]} 8... Bc5 {[%clk 0:02:57]} 9. d4 {[%clk 0:02:52]} 9... Bb6 {[%clk
0:02:53.1]} 10. Qxb5+ {[%clk 0:02:48.8]} 10... Nbd7 {[%clk 0:02:53.1]} 11. Qe2
{[%clk 0:02:46.1]} 11... O-O {[%clk 0:02:52]} 12. Rd1 {[%clk 0:02:44.1]} 12...
a5 {[%clk 0:02:52.2]} 13. c3 {[%clk 0:02:26.1]} 13... a4 {[%clk 0:02:49.8]} 14.
Bg5 {[%clk 0:02:23]} 14... h6 {[%clk 0:02:49.2]} 15. Bxf6 {[%clk 0:02:15.6]}
15... Nxf6 {[%clk 0:02:47.3]} 16. Nbd2 {[%clk 0:02:15.4]} 16... Qd6 {[%clk
0:02:43.2]} 17. Ne5 {[%clk 0:02:06.8]} 17... Bxg2 {[%clk 0:02:41.1]} 18. Kxg2
{[%clk 0:02:05.8]} 18... c5 {[%clk 0:02:41.2]} 19. Ndc4 {[%clk 0:02:05.2]} 19...
Qd5+ {[%clk 0:02:38.8]} 20. Qf3 {[%clk 0:02:04.9]} 20... Ba7 {[%clk 0:02:32.7]}
21. Qxd5 {[%clk 0:02:00.6]} 21... exd5 {[%clk 0:02:31]} 22. Ne3 {[%clk
0:01:57.2]} 22... cxd4 {[%clk 0:02:30]} 23. cxd4 {[%clk 0:01:56.5]} 23... Rfc8
{[%clk 0:02:25.8]} 24. Nf3 {[%clk 0:01:36.2]} 24... Rab8 {[%clk 0:02:24.5]} 25.
Rab1 {[%clk 0:01:34.4]} 25... Rb4 {[%clk 0:02:23.8]} 26. a3 {[%clk 0:01:27.6]}
26... Rb3 {[%clk 0:02:18.6]} 27. Rbc1 {[%clk 0:01:16.1]} 27... Rxc1 {[%clk
0:02:13.5]} 28. Rxc1 {[%clk 0:01:16.2]} 28... Rxb2 {[%clk 0:02:13.8]} 29. Rc8+
{[%clk 0:01:15.6]} 29... Kh7 {[%clk 0:02:13.5]} 30. Rc7 {[%clk 0:01:15.8]} 30...
Bb6 {[%clk 0:02:11.8]} 31. Rxf7 {[%clk 0:01:15.1]} 31... Ne4 {[%clk 0:02:12.3]}
32. Nd1 {[%clk 0:01:01.1]} 32... Rb1 {[%clk 0:02:06.1]} 33. Ne3 {[%clk
0:00:59.5]} 33... Rb2 {[%clk 0:02:05.9]} 34. Nxd5 {[%clk 0:00:57]} 34... Rxf2+
{[%clk 0:02:03.3]} 35. Kg1 {[%clk 0:00:57.1]} 35... Bxd4 {[%clk 0:02:02.9]} 36.
Ng5+ {[%clk 0:00:49.9]} 36... hxg5 {[%clk 0:01:59.2]} 37. Rxf2 {[%clk 0:00:49]}
37... Bxf2+ {[%clk 0:01:57.8]} 38. Kg2 {[%clk 0:00:48.9]} 38... Bc5 {[%clk
0:01:58.2]} 39. Kf3 {[%clk 0:00:46.7]} 39... Nf6 {[%clk 0:01:57.6]} 40. Nc3
{[%clk 0:00:46.2]} 40... g4+ {[%clk 0:01:56]} 41. Kg2 {[%clk 0:00:45.6]} 41...
Bxa3 {[%clk 0:01:55]} 42. Nxa4 {[%clk 0:00:45.7]} 42... Bb4 {[%clk 0:01:53.3]}
43. Nb2 {[%clk 0:00:45.3]} 43... Kg6 {[%clk 0:01:51.2]} 44. Nd3 {[%clk
0:00:45.2]} 44... Bd6 {[%clk 0:01:49.5]} 45. Nf2 {[%clk 0:00:42.7]} 45... Kf5
{[%clk 0:01:48.6]} 46. Nd3 {[%clk 0:00:36.8]} 46... Ne4 {[%clk 0:01:48.1]} 47.
Nf2 {[%clk 0:00:23.2]} 47... Nxf2 {[%clk 0:01:47.5]} 48. Kxf2 {[%clk 0:00:22.4]}
48... Ke4 {[%clk 0:01:47.9]} 49. Ke2 {[%clk 0:00:21.5]} 49... Bc5 {[%clk
0:01:46.8]} 50. Kf1 {[%clk 0:00:19.1]} 50... Kf3 {[%clk 0:01:46.9]} 0-1

[Event "*** Titled Tuesday Blitz"]
[Site "Chess.com"]
[Date "2020.04.07"]
[Round "2"]
[White "Taron_Shagbazyan"]
[Black "Agent-JL"]
[Result "0-1"]
[WhiteElo "2695"]
[BlackElo "2424"]
[TimeControl "180+1"]
[EndTime "13:18:01 PDT"]
[Termination "Agent-JL won by resignation"]

1. d4 {[%clk 0:03:00.9]} 1... Nf6 {[%clk 0:02:58.5]} 2. c4 {[%clk 0:02:56.7]}
2... e6 {[%clk 0:02:53.4]} 3. Nc3 {[%clk 0:02:56.4]} 3... Bb4 {[%clk 0:02:50.5]}
4. e3 {[%clk 0:02:56.6]} 4... d5 {[%clk 0:02:50.2]} 5. Ne2 {[%clk 0:02:56.6]}
5... O-O {[%clk 0:02:49.3]} 6. a3 {[%clk 0:02:56.9]} 6... Be7 {[%clk 0:02:47.8]}
7. Ng3 {[%clk 0:02:56.9]} 7... b6 {[%clk 0:02:48.1]} 8. Be2 {[%clk 0:02:56.6]}
8... Bb7 {[%clk 0:02:48.4]} 9. O-O {[%clk 0:02:57.1]} 9... Nbd7 {[%clk 0:02:49]}
10. cxd5 {[%clk 0:02:53.9]} 10... Nxd5 {[%clk 0:02:44.9]} 11. e4 {[%clk
0:02:49.7]} 11... Nxc3 {[%clk 0:02:42.5]} 12. bxc3 {[%clk 0:02:50.6]} 12... c5
{[%clk 0:02:42.6]} 13. Be3 {[%clk 0:02:49.7]} 13... Rc8 {[%clk 0:02:39.9]} 14.
Qd2 {[%clk 0:02:48.3]} 14... Nf6 {[%clk 0:02:39.5]} 15. f3 {[%clk 0:02:48.4]}
15... Qd7 {[%clk 0:02:33.6]} 16. Rfd1 {[%clk 0:02:48.6]} 16... Rfd8 {[%clk
0:02:32.2]} 17. a4 {[%clk 0:02:49]} 17... Bc6 {[%clk 0:02:25.3]} 18. a5 {[%clk
0:02:43.5]} 18... b5 {[%clk 0:02:23]} 19. Qb2 {[%clk 0:02:35.5]} 19... c4 {[%clk
0:02:10.5]} 20. a6 {[%clk 0:02:29]} 20... Qc7 {[%clk 0:02:06.1]} 21. Nf1 {[%clk
0:02:23.1]} 21... Rb8 {[%clk 0:02:03.5]} 22. Qc1 {[%clk 0:02:19.3]} 22... Rb6
{[%clk 0:02:00.9]} 23. d5 {[%clk 0:02:10]} 23... exd5 {[%clk 0:01:59.4]} 24. e5
{[%clk 0:01:54.1]} 24... Nd7 {[%clk 0:01:49]} 25. Bxb6 {[%clk 0:01:39.8]} 25...
Qxb6+ {[%clk 0:01:49.3]} 26. Kh1 {[%clk 0:01:40.5]} 26... Nxe5 {[%clk
0:01:49.1]} 27. Ng3 {[%clk 0:01:39.1]} 27... g6 {[%clk 0:01:43.1]} 28. f4 {[%clk
0:01:36.6]} 28... Nd7 {[%clk 0:01:36.9]} 29. f5 {[%clk 0:01:37]} 29... Nc5
{[%clk 0:01:31.5]} 30. fxg6 {[%clk 0:01:35.7]} 30... hxg6 {[%clk 0:01:31.5]} 31.
Rf1 {[%clk 0:01:26.7]} 31... Qc7 {[%clk 0:01:21.7]} 32. Qh6 {[%clk 0:01:21.5]}
32... Bf8 {[%clk 0:01:18.3]} 33. Qg5 {[%clk 0:01:19.8]} 33... Ne6 {[%clk
0:01:16.3]} 34. Qg4 {[%clk 0:01:19.1]} 34... Bg7 {[%clk 0:01:12.7]} 35. Rac1
{[%clk 0:01:13.6]} 35... d4 {[%clk 0:01:03.9]} 36. cxd4 {[%clk 0:01:13.3]} 36...
Rxd4 {[%clk 0:00:57.3]} 37. Ne4 {[%clk 0:00:49.1]} 37... Rxe4 {[%clk 0:00:54.2]}
38. Qf3 {[%clk 0:00:48.8]} 38... Nd4 {[%clk 0:00:49.7]} 39. Qf2 {[%clk
0:00:40.3]} 39... Rxe2 {[%clk 0:00:49.1]} 0-1

[Event "*** Titled Tuesday Blitz"]
[Site "Chess.com"]
[Date "2020.04.07"]
[Round "2"]
[White "HiHaruka"]
[Black "pedromartinez91"]
[Result "0-1"]
[WhiteElo "2268"]
[BlackElo "2498"]
[TimeControl "180+1"]
[EndTime "13:18:01 PDT"]
[Termination "pedromartinez91 won on time"]

1. e4 {[%clk 0:03:00.9]} 1... c5 {[%clk 0:02:59.5]} 2. Nf3 {[%clk 0:02:56.7]}
2... Nc6 {[%clk 0:02:59.5]} 3. d4 {[%clk 0:02:56.4]} 3... cxd4 {[%clk
0:03:00.4]} 4. Nxd4 {[%clk 0:02:56.5]} 4... g6 {[%clk 0:03:01.3]} 5. Nc3 {[%clk
0:02:54.9]} 5... Bg7 {[%clk 0:03:00.7]} 6. Be3 {[%clk 0:02:55]} 6... Nf6 {[%clk
0:03:01.1]} 7. Be2 {[%clk 0:02:52.1]} 7... O-O {[%clk 0:03:00.7]} 8. O-O {[%clk
0:02:51.8]} 8... d5 {[%clk 0:02:58.5]} 9. exd5 {[%clk 0:02:47.4]} 9... Nxd5
{[%clk 0:02:59.4]} 10. Nxd5 {[%clk 0:02:45]} 10... Qxd5 {[%clk 0:03:00.3]} 11.
Nxc6 {[%clk 0:02:44.6]} 11... Qxc6 {[%clk 0:02:59.2]} 12. Bf3 {[%clk 0:02:44.3]}
12... Qc7 {[%clk 0:02:55.4]} 13. c3 {[%clk 0:02:42.2]} 13... Be6 {[%clk
0:02:51]} 14. Bd4 {[%clk 0:02:33.8]} 14... Rfd8 {[%clk 0:02:50]} 15. Qa4 {[%clk
0:02:30.7]} 15... Bxd4 {[%clk 0:02:45.5]} 16. cxd4 {[%clk 0:02:30.3]} 16... Bd5
{[%clk 0:02:46.1]} 17. Rac1 {[%clk 0:02:24.6]} 17... Qb6 {[%clk 0:02:41.3]} 18.
Rfd1 {[%clk 0:01:03.4]} 18... Bxf3 {[%clk 0:02:38.1]} 19. gxf3 {[%clk
0:01:04.3]} 19... Rd5 {[%clk 0:02:31.9]} 20. Qa3 {[%clk 0:00:45.9]} 20... Qf6
{[%clk 0:01:28.4]} 21. Re1 {[%clk 0:00:20.3]} 21... e6 {[%clk 0:01:22]} 22. Rc7
{[%clk 0:00:14.6]} 22... b6 {[%clk 0:01:21.7]} 23. Qa6 {[%clk 0:00:09.8]} 23...
Qxf3 {[%clk 0:01:16]} 24. Kf1 {[%clk 0:00:03.9]} 24... Qh3+ {[%clk 0:01:12.9]}
25. Ke2 {[%clk 0:00:03.3]} 25... Qg4+ {[%clk 0:01:04.3]} 26. Kf1 {[%clk
0:00:01.6]} 26... Qxd4 {[%clk 0:01:04.5]} 27. Rc3 {[%clk 0:00:01.2]} 27... Rf5
{[%clk 0:01:01.9]} 0-1

[Event "*** Titled Tuesday Blitz"]
[Site "Chess.com"]
[Date "2020.04.07"]
[Round "2"]
[White "ChadaevNikolay"]
[Black "chessasuke"]
[Result "1-0"]
[WhiteElo "2903"]
[BlackElo "2585"]
[TimeControl "180+1"]
[EndTime "13:18:03 PDT"]
[Termination "ChadaevNikolay won by resignation"]

1. e4 {[%clk 0:03:00.9]} 1... e6 {[%clk 0:02:58.3]} 2. d4 {[%clk 0:03:00]} 2...
d5 {[%clk 0:02:57.3]} 3. Nd2 {[%clk 0:02:59.8]} 3... c5 {[%clk 0:02:54.4]} 4.
exd5 {[%clk 0:02:59.5]} 4... Qxd5 {[%clk 0:02:53]} 5. dxc5 {[%clk 0:02:58.9]}
5... Bxc5 {[%clk 0:02:51.9]} 6. Ngf3 {[%clk 0:02:57]} 6... Nf6 {[%clk
0:02:47.2]} 7. Bc4 {[%clk 0:02:55.8]} 7... Qc6 {[%clk 0:02:45.9]} 8. Qe2 {[%clk
0:02:54.9]} 8... O-O {[%clk 0:02:44.9]} 9. O-O {[%clk 0:02:55.2]} 9... b6 {[%clk
0:02:27]} 10. Nb3 {[%clk 0:02:52.1]} 10... Be7 {[%clk 0:02:18]} 11. Nbd4 {[%clk
0:02:50.2]} 11... Qe4 {[%clk 0:02:08.7]} 12. Qxe4 {[%clk 0:02:48.3]} 12... Nxe4
{[%clk 0:02:09.6]} 13. Re1 {[%clk 0:02:48.2]} 13... Nf6 {[%clk 0:02:02]} 14. Bg5
{[%clk 0:02:34.5]} 14... h6 {[%clk 0:01:53.8]} 15. Bh4 {[%clk 0:02:32.3]} 15...
Rd8 {[%clk 0:01:47.2]} 16. Nf5 {[%clk 0:02:14.9]} 16... Nc6 {[%clk 0:01:33.7]}
17. Nxe7+ {[%clk 0:01:41.2]} 17... Nxe7 {[%clk 0:01:32.1]} 18. Ne5 {[%clk
0:01:35.5]} 18... Bb7 {[%clk 0:01:14.3]} 19. f3 {[%clk 0:01:34.8]} 19... Bd5
{[%clk 0:01:03.7]} 20. Bf1 {[%clk 0:01:34.2]} 20... Rac8 {[%clk 0:00:57.5]} 21.
c4 {[%clk 0:01:33.5]} 21... Bb7 {[%clk 0:00:57]} 22. Rad1 {[%clk 0:01:29.9]}
22... Kf8 {[%clk 0:00:45.9]} 23. Be2 {[%clk 0:01:23.1]} 23... Nf5 {[%clk
0:00:26.7]} 24. Bf2 {[%clk 0:01:22.6]} 24... Ke7 {[%clk 0:00:25.5]} 25. a4
{[%clk 0:01:19.3]} 25... Nd7 {[%clk 0:00:24.4]} 26. Nxd7 {[%clk 0:01:13.2]}
26... Rxd7 {[%clk 0:00:25.3]} 27. Rxd7+ {[%clk 0:01:13.2]} 27... Kxd7 {[%clk
0:00:26.2]} 28. Rd1+ {[%clk 0:01:08.7]} 28... Ke7 {[%clk 0:00:25.3]} 29. b4
{[%clk 0:01:09]} 29... Nd6 {[%clk 0:00:22.1]} 30. c5 {[%clk 0:01:08.7]} 30...
bxc5 {[%clk 0:00:20.6]} 31. Bxc5 {[%clk 0:01:07.8]} 31... Rc6 {[%clk 0:00:19.1]}
32. Bb5 {[%clk 0:01:03.6]} 1-0

[Event "*** Titled Tuesday Blitz"]
[Site "Chess.com"]
[Date "2020.04.07"]
[Round "2"]
[White "RestartingChess"]
[Black "StephenDedalus83"]
[Result "0-1"]
[WhiteElo "2354"]
[BlackElo "2730"]
[TimeControl "180+1"]
[EndTime "13:18:03 PDT"]
[Termination "StephenDedalus83 won by resignation"]

1. e4 {[%clk 0:03:00.9]} 1... g6 {[%clk 0:02:58.1]} 2. d4 {[%clk 0:03:00.4]}
2... Bg7 {[%clk 0:02:58.7]} 3. Nf3 {[%clk 0:03:00.9]} 3... d6 {[%clk 0:02:57.5]}
4. Be2 {[%clk 0:03:00.5]} 4... c5 {[%clk 0:02:52.5]} 5. Be3 {[%clk 0:02:59.9]}
5... cxd4 {[%clk 0:02:51.1]} 6. Nxd4 {[%clk 0:02:59.4]} 6... Nf6 {[%clk
0:02:51]} 7. Nc3 {[%clk 0:02:59.5]} 7... O-O {[%clk 0:02:50.2]} 8. O-O {[%clk
0:02:59.2]} 8... Nc6 {[%clk 0:02:50]} 9. h3 {[%clk 0:02:59.4]} 9... Bd7 {[%clk
0:02:35.4]} 10. f4 {[%clk 0:02:50.7]} 10... a6 {[%clk 0:02:35.4]} 11. f5 {[%clk
0:02:50.9]} 11... Ne5 {[%clk 0:02:32.5]} 12. Nf3 {[%clk 0:02:44]} 12... Bc6
{[%clk 0:02:27.7]} 13. Nxe5 {[%clk 0:02:39.6]} 13... dxe5 {[%clk 0:02:27.7]} 14.
fxg6 {[%clk 0:02:34]} 14... hxg6 {[%clk 0:02:26.9]} 15. Bf3 {[%clk 0:02:30.7]}
15... b5 {[%clk 0:02:26.8]} 16. Qxd8 {[%clk 0:02:28.4]} 16... Rfxd8 {[%clk
0:02:26]} 17. Rad1 {[%clk 0:02:22.9]} 17... b4 {[%clk 0:02:25.2]} 18. Nd5 {[%clk
0:02:19.7]} 18... Bxd5 {[%clk 0:02:24.9]} 19. exd5 {[%clk 0:02:17]} 19... e4
{[%clk 0:02:25.5]} 20. Be2 {[%clk 0:02:17.3]} 20... Nxd5 {[%clk 0:02:25.4]} 21.
Bc5 {[%clk 0:02:13.2]} 21... Bxb2 {[%clk 0:02:21.9]} 22. Bc4 {[%clk 0:02:12.4]}
22... e6 {[%clk 0:02:20.2]} 23. Bxd5 {[%clk 0:01:36.6]} 23... Rxd5 {[%clk
0:02:18.1]} 24. Bxb4 {[%clk 0:01:32.3]} 24... Rc8 {[%clk 0:02:15.8]} 25. Rde1
{[%clk 0:01:14.4]} 25... f5 {[%clk 0:02:14.7]} 26. Re2 {[%clk 0:01:14]} 26...
Rc4 {[%clk 0:02:04.5]} 27. a3 {[%clk 0:00:57.5]} 27... a5 {[%clk 0:02:02.7]} 28.
Be7 {[%clk 0:00:57.8]} 28... Kf7 {[%clk 0:02:02]} 29. Bg5 {[%clk 0:00:50.4]}
29... Bxa3 {[%clk 0:02:01.9]} 30. g4 {[%clk 0:00:47.7]} 30... a4 {[%clk
0:02:01.3]} 31. h4 {[%clk 0:00:48]} 31... Bb2 {[%clk 0:01:59.6]} 32. h5 {[%clk
0:00:48.2]} 32... gxh5 {[%clk 0:01:59.1]} 33. gxh5 {[%clk 0:00:48.1]} 33... a3
{[%clk 0:01:59.5]} 34. Bc1 {[%clk 0:00:42]} 34... Bd4+ {[%clk 0:01:55.9]} 35.
Be3 {[%clk 0:00:40.4]} 35... Bf6 {[%clk 0:01:53.2]} 36. c3 {[%clk 0:00:32.6]}
36... Rxc3 {[%clk 0:01:53]} 37. Bf4 {[%clk 0:00:25.9]} 37... Rh3 {[%clk
0:01:52.6]} 38. Rc1 {[%clk 0:00:22.6]} 38... Bb2 {[%clk 0:01:44.3]} 39. Rc7+
{[%clk 0:00:21.4]} 39... Kf6 {[%clk 0:01:44.3]} 40. Ra7 {[%clk 0:00:17.7]} 40...
Bd4+ {[%clk 0:01:43.3]} 41. Kg2 {[%clk 0:00:16.6]} 41... Rf3 {[%clk 0:01:39.4]}
42. Ra8 {[%clk 0:00:09.5]} 42... Rxf4 {[%clk 0:01:38.9]} 43. Rxa3 {[%clk
0:00:10.4]} 43... Rh4 {[%clk 0:01:38.3]} 44. Rh3 {[%clk 0:00:10.8]} 44... Rxh3
{[%clk 0:01:38.1]} 45. Kxh3 {[%clk 0:00:11.7]} 45... Kg5 {[%clk 0:01:38.5]} 46.
Kg3 {[%clk 0:00:11.6]} 46... Kxh5 {[%clk 0:01:38.4]} 47. Kf4 {[%clk 0:00:12.5]}
47... Be5+ {[%clk 0:01:38.2]} 48. Ke3 {[%clk 0:00:13.1]} 48... Rd3+ {[%clk
0:01:37.9]} 49. Kf2 {[%clk 0:00:13.7]} 49... Kg4 {[%clk 0:01:38.2]} 50. Re1
{[%clk 0:00:14.2]} 50... Bg3+ {[%clk 0:01:37.9]} 0-1

[Event "*** Titled Tuesday Blitz"]
[Site "Chess.com"]
[Date "2020.04.07"]
[Round "2"]
[White "Fibrinogen"]
[Black "fidezivkovic"]
[Result "1-0"]
[WhiteElo "2707"]
[BlackElo "2350"]
[TimeControl "180+1"]
[EndTime "13:18:03 PDT"]
[Termination "Fibrinogen won by resignation"]

1. c4 {[%clk 0:03:00.9]} 1... e5 {[%clk 0:02:58.9]} 2. Nc3 {[%clk 0:02:58.6]}
2... Nf6 {[%clk 0:02:57.7]} 3. Nf3 {[%clk 0:02:59]} 3... Nc6 {[%clk 0:02:56.9]}
4. e3 {[%clk 0:02:58.9]} 4... Bb4 {[%clk 0:02:55.5]} 5. Nd5 {[%clk 0:02:59]}
5... Bc5 {[%clk 0:02:49.7]} 6. Qc2 {[%clk 0:02:58]} 6... O-O {[%clk 0:02:46]} 7.
a3 {[%clk 0:02:58.3]} 7... a5 {[%clk 0:02:44.6]} 8. Bd3 {[%clk 0:02:57.7]} 8...
h6 {[%clk 0:02:41.9]} 9. O-O {[%clk 0:02:57.3]} 9... d6 {[%clk 0:02:40.9]} 10.
Rb1 {[%clk 0:02:56.5]} 10... Nxd5 {[%clk 0:02:37.5]} 11. cxd5 {[%clk 0:02:56.8]}
11... Ne7 {[%clk 0:02:36.7]} 12. Nxe5 {[%clk 0:02:54.1]} 12... Nxd5 {[%clk
0:02:32.1]} 13. Nf3 {[%clk 0:02:42.1]} 13... Nf6 {[%clk 0:02:30]} 14. b4 {[%clk
0:02:39.6]} 14... axb4 {[%clk 0:02:28.7]} 15. axb4 {[%clk 0:02:40.5]} 15... Bb6
{[%clk 0:02:27.7]} 16. Bb2 {[%clk 0:02:41]} 16... c6 {[%clk 0:02:22.6]} 17. b5
{[%clk 0:02:35.9]} 17... c5 {[%clk 0:02:10.7]} 18. Bf5 {[%clk 0:02:21.5]} 18...
d5 {[%clk 0:02:05.8]} 19. Ra1 {[%clk 0:02:18.4]} 19... Be6 {[%clk 0:01:52]} 20.
d4 {[%clk 0:02:03.6]} 20... c4 {[%clk 0:01:49.5]} 21. Ne5 {[%clk 0:01:57.4]}
21... Nd7 {[%clk 0:01:39.8]} 22. Rxa8 {[%clk 0:01:54.4]} 22... Qxa8 {[%clk
0:01:35.4]} 23. Nxd7 {[%clk 0:01:54.4]} 23... Bxf5 {[%clk 0:01:31]} 24. Qxf5
{[%clk 0:01:53.6]} 24... Qc8 {[%clk 0:01:23.2]} 25. Qg4 {[%clk 0:01:46.5]} 25...
f5 {[%clk 0:01:16.8]} 26. Nxb6 {[%clk 0:01:46.1]} 26... fxg4 {[%clk 0:01:13.6]}
27. Nxc8 {[%clk 0:01:45.6]} 27... Rxc8 {[%clk 0:01:12.6]} 28. Bc3 {[%clk
0:01:46.1]} 28... Kf7 {[%clk 0:01:08.7]} 29. f3 {[%clk 0:01:45]} 29... gxf3
{[%clk 0:01:06.5]} 30. gxf3 {[%clk 0:01:45.9]} 30... Ke6 {[%clk 0:01:04.5]} 31.
Kf2 {[%clk 0:01:45.7]} 31... g5 {[%clk 0:01:02.8]} 32. Ra1 {[%clk 0:01:41]}
32... Rf8 {[%clk 0:00:59.2]} 33. Ke2 {[%clk 0:01:39.7]} 33... Kd7 {[%clk
0:00:49]} 34. h4 {[%clk 0:01:26.1]} 34... gxh4 {[%clk 0:00:42.7]} 35. Rh1 {[%clk
0:01:25.1]} 35... Rg8 {[%clk 0:00:41.6]} 36. Kf2 {[%clk 0:01:22.1]} 36... Rg5
{[%clk 0:00:33.9]} 37. Rxh4 {[%clk 0:01:20.8]} 37... h5 {[%clk 0:00:32.8]} 38.
Rf4 {[%clk 0:01:15.3]} 38... Kc7 {[%clk 0:00:29.8]} 39. Ba5+ {[%clk 0:01:13]}
39... b6 {[%clk 0:00:27.1]} 40. Rf7+ {[%clk 0:01:12.9]} 1-0